bitfinex-derivatives/quotes_SOLF0:USTF0_20260102
["timestamp","ask_amount","ask_price","bid_price","bid_amount"]
[1767358380463,0.38118352,128.63,128.57,0.31843135]
[1767358380658,0.33157977,128.63,128.57,0.31843135]
[1767358381055,0.33157977,128.62,128.55,0.31843135]
[1767358381255,0.38909846,128.6,128.57,0.05243183]
[1767358381460,0.38909846,128.6,128.55,0.31843135]
[1767358381650,0.38909846,128.6,128.5,2.35677552]
[1767358381854,0.33157977,128.6,128.51,0.31843135]
[1767358382252,7.33747977,128.6,128.54,0.31843135]
[1767358382457,0.05550733,128.58,128.56,0.05496186]
[1767358384774,0.33157977,128.57,128.46,123.1184]
[1767358385069,2.68835529,128.56,128.5,7.32963135]
[1767358385470,2.68835529,128.56,128.5,0.31843135]
[1767358385666,7.34017977,128.55,128.5,0.31843135]
[1767358385868,0.33157977,128.53,128.46,0.31843135]
[1767358386572,7.34047977,128.55,128.48,7.33063135]
[1767358386776,0.05623465,128.53,128.5,0.05570907]
[1767358390079,0.38781442,128.53,128.5,0.05570907]
[1767358405591,0.05623465,128.53,128.5,0.05570907]
[1767358406891,0.39937405,128.53,128.5,0.05570907]
[1767358407093,0.3431394,128.52,128.47,0.31798585]
[1767358408089,0.3431394,128.52,128.48,0.04922315]
[1767358408792,7.3533394,128.52,128.48,0.04922315]
[1767358411396,9.71061492,128.51,128.45,0.31798585]
[1767358411987,7.3544394,128.5,128.45,0.31798585]
[1767358412595,0.05960173,128.49,128.46,0.05286502]
[1767358413294,0.05960173,128.49,128.46,0.37085087]
[1767358416200,0.05960173,128.49,128.46,7.38405087]
[1767358416395,0.05960173,128.49,128.47,0.31798585]
[1767358416596,7.3525394,128.54,128.47,0.31798585]
[1767358417700,0.05076666,128.52,128.49,0.05154343]
[1767358434597,0.05076666,128.52,128.49,0.3871762]
[1767358440318,0.05076666,128.52,128.49,0.05154343]
[1767358442216,0.39340743,128.52,128.49,0.05154343]
[1767358443712,0.05076666,128.52,128.49,0.05154343]
[1767358446316,0.05076666,128.52,128.49,0.38999517]
[1767358446816,1.85155911,128.58,128.51,0.33845174]
[1767358447023,1.85155911,128.58,128.49,0.05154343]
[1767358447024,0.34264077,128.58,128.52,1.84737008]
[1767358447218,0.34264077,128.58,128.53,0.33845174]
[1767358447811,0.0593004,128.57,128.54,0.05558846]
[1767358457228,0.40194117,128.57,128.54,0.05558846]
[1767358457526,0.34264077,128.55,128.49,0.33845174]
[1767358457731,1.85155911,128.54,128.49,0.33845174]
[1767358458333,0.0543519,128.53,128.5,0.05786513]
[1767358462229,0.0543519,128.53,128.5,0.39631687]
[1767358465735,7.0085,128.55,128.5,0.39631687]
[1767358466734,0.05807789,128.54,128.5,0.39631687]
[1767358467937,0.05807789,128.54,128.5,7.40731687]
[1767358482562,0.40134521,128.54,128.5,7.06886513]
[1767358483859,0.05807789,128.54,128.5,7.40049]
[1767358487757,2.75860163,128.54,128.5,0.05786513]
[1767358488361,0.34326732,128.53,128.5,0.05786513]
[1767358488761,7.35286732,128.53,128.5,0.05786513]
[1767358500562,0.05807789,128.54,128.5,0.38815821]
[1767358501169,0.05807789,128.54,128.51,0.33029308]
[1767358504065,0.3375782,128.58,128.52,0.33029308]
[1767358504572,0.3375782,128.58,128.53,0.33029308]
[1767358505074,0.05365714,128.57,128.54,0.05798338]
[1767358520578,0.05365714,128.57,128.53,0.33029308]
[1767358521578,0.05365714,128.57,128.54,0.05899836]
[1767358524787,7.06105714,128.57,128.54,0.05899836]
[1767358524994,7.06105714,128.57,128.53,0.33029308]
[1767358525892,7.06105714,128.57,128.54,0.04911961]
[1767358532897,0.31396931,128.56,128.54,0.04911961]
[1767358533486,0.31396931,128.56,128.51,0.34085985]
[1767358533694,7.32196931,128.56,128.51,0.34085985]
[1767358534399,7.0085,128.55,128.51,0.34085985]
[1767358534598,7.0085,128.55,128.52,0.04908938]
[1767358534599,0.05006757,128.54,128.52,0.04908938]
[1767358538902,7.05906757,128.54,128.49,7.35255985]
[1767358539101,7.37303688,128.54,128.49,0.34085985]
[1767358540106,7.37303688,128.54,128.5,0.05146777]
[1767358546612,8.88170055,128.54,128.5,0.05146777]
[1767358552416,0.05006757,128.54,128.5,0.39232762]
[1767358553818,0.05006757,128.54,128.5,7.40342762]
[1767358559122,0.05006757,128.54,128.5,0.39232762]
[1767358559720,7.37483227,128.54,128.5,0.05146777]
[1767358565242,0.3156647,128.53,128.5,0.05146777]
[1767358565728,8.83402837,128.53,128.5,0.05146777]
[1767358565929,8.83402837,128.53,128.47,7.33955706]
[1767358566323,1.82432837,128.53,128.48,7.33905706]
[1767358566924,0.05971451,128.52,128.49,0.05487621]
[1767358573536,0.37537921,128.52,128.49,0.05487621]
[1767358574531,7.38547921,128.52,128.49,0.05487621]
[1767358575539,0.3156647,128.51,128.46,7.34005706]
[1767358576555,0.3156647,128.51,128.47,0.05538782]
[1767358584754,0.3156647,128.5,128.47,0.05538782]
[1767358584965,0.3156647,128.48,128.42,92.30675706]
[1767358585256,1.50866367,128.47,128.42,92.30675706]
[1767358585760,1.82432837,128.45,128.39,0.32675706]
[1767358585965,1.81748149,128.47,128.41,0.37002131]
[1767358586259,1.81748149,128.47,128.42,0.33599851]
[1767358586562,0.32251941,128.49,128.43,0.33599851]
[1767358587055,0.05923798,128.47,128.45,0.056795]
[1767358598068,0.05923798,128.47,128.45,0.39279351]
[1767358603775,1.83118308,128.5,128.45,0.39279351]
[1767358603967,0.32251941,128.5,128.45,0.39279351]
[1767358604771,0.05729315,128.49,128.45,0.39279351]
[1767358607275,0.05729315,128.49,128.45,7.40669351]
[1767358607674,0.05729315,128.49,128.45,0.39279351]
[1767358608574,0.37981256,128.49,128.44,92.0]
[1767358608978,0.37981256,128.49,128.43,0.33599851]
[1767358609182,0.37981256,128.49,128.43,92.33599851]
[1767358609779,0.37981256,128.49,128.45,0.05884312]
[1767358612679,0.05729315,128.49,128.45,0.39484163]
[1767358616093,0.39717524,128.49,128.45,0.39484163]
[1767358616984,0.39717524,128.49,128.45,0.05884312]
[1767358623993,7.40897524,128.49,128.45,0.05884312]
[1767358630001,0.33988209,128.48,128.45,0.05884312]
[1767358630994,7.35248209,128.48,128.43,0.33798334]
[1767358632199,7.35248209,128.48,128.44,0.02792563]
[1767358634497,0.33988209,128.47,128.44,0.02792563]
[1767358637204,0.05729315,128.49,128.45,0.33798334]
[1767358638809,0.05729315,128.49,128.45,7.35188334]
[1767358639416,0.05729315,128.49,128.45,7.0139]
[1767358639417,0.39717524,128.49,128.45,7.0139]
[1767358640508,0.39717524,128.49,128.46,7.0133]
[1767358640509,0.05729315,128.49,128.46,7.0133]
[1767358640711,0.33988209,128.51,128.46,7.35128334]
[1767358641611,0.05607039,128.5,128.47,0.0499584]
[1767358648916,0.30667819,128.49,128.43,0.32502264]
[1767358649520,7.31847819,128.49,128.43,0.32502264]
[1767358650017,0.05305859,128.47,128.45,0.03526038]
[1767358651819,0.05305859,128.47,128.43,0.32502264]
[1767358681750,0.05305859,128.47,128.44,0.3321063]
[1767358681955,7.33435575,128.5,128.44,0.3321063]
[1767358682349,0.32265575,128.5,128.44,0.3321063]
[1767358682554,1.50991282,128.51,128.46,0.3321063]
[1767358682846,0.05689764,128.5,128.47,0.05305859]
[1767358684150,0.05689764,128.5,128.47,0.38516489]
[1767358692366,0.05689764,128.5,128.47,7.39796489]
[1767358693765,0.05689764,128.5,128.47,0.38516489]
[1767358696473,0.37955339,128.5,128.47,0.05305859]
[1767358696662,1.88946621,128.5,128.47,0.05305859]
[1767358697260,0.37955339,128.5,128.47,0.05305859]
[1767358697459,1.88946621,128.5,128.47,0.05305859]
[1767358702770,1.88946621,128.5,128.45,7.3460063]
[1767358703362,1.88946621,128.5,128.45,0.3321063]
[1767358704574,8.90066621,128.5,128.45,0.3321063]
[1767358708977,0.33174104,128.49,128.44,7.0144]
[1767358709676,0.33174104,128.49,128.44,7.32955933]
[1767358712078,7.34354104,128.49,128.44,7.32955933]
[1767358712580,0.33174104,128.49,128.44,7.32955933]
[1767358725596,7.34364104,128.49,128.44,0.31515933]
[1767358736091,0.31370036,128.48,128.42,0.34528594]
[1767358736396,0.05548866,128.46,128.42,0.34528594]
[1767358736795,0.05548866,128.46,128.42,7.36078594]
[1767358738395,0.05548866,128.46,128.42,0.34528594]
[1767358739885,7.06898866,128.46,128.42,0.34528594]
[1767358740395,0.05548866,128.46,128.42,0.34528594]
[1767358741596,0.05548866,128.46,128.43,0.34528594]
[1767358742897,0.05548866,128.46,128.43,7.36028594]
[1767358749897,0.05548866,128.46,128.44,0.34528594]
[1767358764319,7.0124,128.48,128.44,0.34528594]
[1767358764712,7.32550036,128.49,128.44,0.34528594]
[1767358765419,0.05782729,128.48,128.45,0.04936614]
[1767358771024,0.36111475,128.48,128.43,7.015]
[1767358771519,0.36111475,128.48,128.43,7.32404155]
[1767358778631,7.37351475,128.48,128.43,0.30904155]
[1767358779336,0.05782729,128.48,128.43,0.30904155]
[1767358780933,0.05782729,128.48,128.43,7.32384155]
[1767358781939,0.05782729,128.48,128.44,0.30904155]
[1767358791845,7.07032729,128.48,128.44,0.30904155]
[1767358795844,0.05782729,128.48,128.44,0.30904155]
[1767358796845,7.39674915,128.48,128.42,7.35129005]
[1767358797447,0.32662186,128.47,128.42,7.35129005]
[1767358797848,0.32662186,128.47,128.42,0.33569005]
[1767358798743,7.0134,128.46,128.42,0.33569005]
[1767358799047,0.05420271,128.45,128.42,0.33569005]
[1767358804844,0.05420271,128.45,128.37,109.1675]
[1767358804845,0.05420271,128.45,128.39,1.84553411]
[1767358805048,0.05922228,128.43,128.4,0.33569005]
[1767358807055,0.05922228,128.43,128.4,0.15738626]
[1767358807246,0.05922228,128.43,128.36,1.50984406]
[1767358807450,0.05922228,128.43,128.38,7.0176]
[1767358807849,0.05922228,128.43,128.38,1.50984406]
[1767358808050,1.83646592,128.47,128.4,7.0165]
[1767358808454,0.32662186,128.46,128.4,7.0165]
[1767358808757,7.34032186,128.46,128.4,7.0165]
[1767358809052,0.05600306,128.44,128.42,0.05497574]
[1767358809563,0.05600306,128.44,128.42,0.39066579]
[1767358819661,0.05600306,128.44,128.42,0.05497574]
[1767358821376,0.05600306,128.44,128.42,0.39066579]
[1767358821679,1.83646592,128.48,128.42,0.39066579]
[1767358822293,7.0129,128.47,128.42,0.39066579]
[1767358822780,0.05398723,128.46,128.42,0.39066579]
[1767358827071,0.38810645,128.46,128.42,0.39066579]
[1767358827981,7.40160645,128.46,128.42,0.05497574]
[1767358829884,1.84396328,128.45,128.42,0.05497574]
[1767358832076,1.84396328,128.45,128.39,0.32635905]
[1767358833383,0.05985172,128.43,128.41,0.0547306]
[1767358834983,1.56969578,128.43,128.39,0.32635905]
[1767358835479,8.919015,128.43,128.36,308.45277461]
[1767358835785,8.919015,128.43,128.37,0.32635905]
[1767358836681,0.33411922,128.42,128.36,216.41277461]
[1767358836876,0.05644667,128.4,128.36,216.41277461]
[1767358837082,0.05644667,128.4,128.36,216.73913366]
[1767358838373,0.05644667,128.4,128.38,0.32635905]
[1767358838574,8.52474406,128.44,128.38,0.32635905]
[1767358839186,8.85886328,128.44,128.38,0.32635905]
[1767358839383,7.34901922,128.44,128.38,0.32635905]
[1767358839584,0.0541974,128.42,128.4,0.05008967]
[1767358841588,0.33411922,128.41,128.37,7.0182]
[1767358842681,0.33411922,128.41,128.36,7.34515905]
[1767358843391,1.50984406,128.4,128.36,0.32635905]
[1767358843582,0.33411922,128.38,128.29,109.239]
[1767358843784,1.50984406,128.39,128.31,0.32635905]
[1767358844086,1.50984406,128.39,128.33,0.32635905]
[1767358844286,1.50984406,128.37,128.3,0.32635905]
[1767358844578,1.50984406,128.37,128.31,0.32635905]
[1767358844778,1.922e-05,128.34,128.27,0.32635905]
[1767358845186,1.922e-05,128.34,128.29,0.32635905]
[1767358845392,1.922e-05,128.34,128.29,7.34905905]
[1767358845586,1.50984406,128.35,128.29,7.34905905]
[1767358845792,0.05758444,128.33,128.29,7.34905905]
[1767358846591,0.05758444,128.33,128.29,0.32635905]
[1767358846980,0.05758444,128.33,128.29,92.38635905]
[1767358847785,0.05758444,128.33,128.3,7.022]
[1767358849996,7.0188,128.37,128.31,7.34785905]
[1767358850204,8.52864406,128.37,128.31,7.34785905]
[1767358850497,8.86276328,128.37,128.31,7.34785905]
[1767358851090,0.0527843,128.35,128.33,0.05239478]
[1767358851995,1.89674758,128.35,128.29,99.42895905]
[1767358852502,0.38690352,128.35,128.29,99.42895905]
[1767358852801,7.40630352,128.35,128.3,0.32635905]
[1767358853000,7.40630352,128.35,128.31,0.02220763]
[1767358853893,0.38690352,128.35,128.31,0.02220763]
[1767358857902,0.32931331,128.34,128.27,0.33698226]
[1767358858604,7.34931331,128.34,128.27,7.36058226]
[1767358858996,0.05235087,128.32,128.27,7.36058226]
[1767358860207,0.38166418,128.32,128.26,10.80164855]
[1767358860502,0.05235087,128.32,128.28,0.33698226]
[1767358860722,0.32931331,128.36,128.28,0.33698226]
[1767358861006,0.32931331,128.36,128.29,0.33698226]
[1767358861410,7.0196,128.35,128.29,0.33698226]
[1767358861704,0.05476713,128.33,128.31,0.05235087]
[1767358868907,0.05476713,128.33,128.31,0.38933313]
[1767358869103,7.0188,128.37,128.31,0.38933313]
[1767358869413,7.34811331,128.37,128.31,0.38933313]
[1767358869606,0.32931331,128.36,128.31,0.38933313]
[1767358869794,0.32931331,128.36,128.31,0.05235087]
[1767358869999,0.05823187,128.35,128.31,0.05235087]
[1767358872511,0.38754518,128.35,128.31,0.05235087]
[1767358873708,7.40704518,128.35,128.31,0.05235087]
[1767358873913,0.38754518,128.35,128.31,0.05235087]
[1767358874298,7.34981331,128.33,128.31,0.05235087]
[1767358876320,0.05823187,128.35,128.31,0.05235087]
[1767358878912,0.05823187,128.35,128.31,0.38933313]
[1767358879924,0.05823187,128.35,128.31,7.41073313]
[1767358880917,0.05823187,128.35,128.31,0.05235087]
[1767358883613,0.05823187,128.35,128.31,0.38933313]
[1767358885227,0.05823187,128.35,128.31,7.41073313]
[1767358890340,0.05823187,128.35,128.32,0.34784521]
[1767358893234,0.05823187,128.35,128.32,7.36884521]
[1767358893626,0.05823187,128.35,128.33,0.34784521]
[1767358899738,0.36468951,128.38,128.33,0.34784521]
[1767358900730,0.0564928,128.37,128.34,0.05146707]
[1767358901638,0.0564928,128.37,128.34,0.39931228]
[1767358901935,0.36468951,128.4,128.34,0.39931228]
[1767358901936,92.1,128.41,128.34,0.39931228]
[1767358902131,99.1164,128.41,128.35,0.34784521]
[1767358902337,7.0164,128.41,128.35,0.34784521]
[1767358902539,7.38108951,128.41,128.35,0.34784521]
[1767358902736,0.05245762,128.39,128.37,0.04942893]
[1767358903734,7.38018951,128.43,128.37,0.39727414]
[1767358904038,7.0155,128.43,128.37,0.39727414]
[1767358904336,0.36468951,128.45,128.38,7.36554521]
[1767358904842,0.05721381,128.43,128.4,0.0510953]
[1767358922957,1.90045348,128.43,128.4,0.0510953]
[1767358923159,1.90045348,128.43,128.38,0.34148792]
[1767358923659,0.38937761,128.43,128.38,0.34148792]
[1767358923957,1.51107587,128.42,128.38,0.34148792]
[1767358924159,1.51107587,128.42,128.39,0.05670994]
[1767358924552,8.85883967,128.42,128.39,0.05670994]
[1767358925463,8.85883967,128.42,128.37,0.34148792]
[1767358925464,7.3483638,128.41,128.35,0.34148792]
[1767358926260,7.0162,128.41,128.35,0.34148792]
[1767358926465,0.05025878,128.39,128.37,0.05365102]
[1767358926655,7.0153,128.43,128.38,0.34148792]
[1767358927550,8.91536681,128.42,128.39,0.05172919]
[1767358927750,8.9178453,128.42,128.39,0.05172919]
[1767358928663,1.9022453,128.42,128.39,0.05172919]
[1767358932968,0.05900563,128.42,128.39,0.05172919]
[1767358936972,0.39116943,128.42,128.39,0.05172919]
[1767358937971,0.05900563,128.42,128.39,0.05172919]
[1767358957789,201.152,128.47,128.4,0.34077283]
[1767358957790,7.0139,128.45,128.4,0.34077283]
[1767358958007,7.37775938,128.45,128.4,0.34077283]
[1767358958692,8.88883525,128.45,128.4,0.34077283]
[1767358958891,0.05446115,128.44,128.41,0.0494761]
[1767358964292,0.36385938,128.43,128.41,0.0494761]
[1767358966695,0.36385938,128.43,128.38,7.35847283]
[1767358967794,0.36385938,128.43,128.39,0.05184388]
[1767358972595,1.87493525,128.42,128.39,0.05184388]
[1767358972803,0.36385938,128.41,128.39,0.05184388]
[1767358972996,0.41901536,128.41,128.39,0.05184388]
[1767358973396,0.05515598,128.41,128.39,0.05184388]
[1767358976510,0.05515598,128.41,128.39,0.42036269]
[1767358976704,0.33777495,128.44,128.39,0.42036269]
[1767358977206,0.33777495,128.44,128.39,0.05184388]
[1767358977700,0.38972181,128.43,128.39,0.05184388]
[1767358977900,7.40482181,128.43,128.39,0.05184388]
[1767358979609,0.05194686,128.43,128.39,0.42036269]
[1767358980395,0.38972181,128.43,128.39,0.42036269]
[1767358981318,0.38972181,128.43,128.39,7.43746269]
[1767358984113,0.38972181,128.43,128.39,0.05184388]
[1767358984706,0.05194686,128.43,128.39,7.43726269]
[1767358988024,0.38972181,128.43,128.39,0.05184388]
[1767358990526,0.33777495,128.42,128.39,0.05184388]
[1767358991924,7.35337495,128.42,128.39,0.05184388]
[1767358992227,0.33777495,128.41,128.39,0.05184388]
[1767358992424,0.33777495,128.4,128.35,0.36851881]
[1767358993325,0.05388701,128.39,128.36,0.05939091]
[1767358993627,0.39166196,128.39,128.36,0.05939091]
[1767358996923,0.05388701,128.39,128.36,0.42790972]
[1767359001120,0.39166196,128.39,128.36,0.05939091]
[1767359006339,0.05388701,128.39,128.36,0.41994736]
[1767359007231,0.05388701,128.39,128.36,7.43864736]
[1767359008232,101.43707196,128.43,128.37,7.37865645]
[1767359008233,99.43924425,128.43,128.37,7.37865645]
[1767359009028,7.37924425,128.43,128.37,7.37865645]
[1767359009230,0.05056271,128.41,128.39,0.05456959]
[1767359009827,0.36364425,128.45,128.39,7.43232604]
[1767359010135,0.36364425,128.45,128.39,7.37775645]
[1767359010821,0.05595335,128.43,128.41,0.05045276]
[1767359018135,0.39649953,128.43,128.41,0.05045276]
[1767359018437,0.39649953,128.43,128.37,0.34276543]
[1767359019136,7.41159953,128.43,128.37,0.34276543]
[1767359019328,7.41159953,128.43,128.39,0.05592598]
[1767359020842,0.34054618,128.42,128.39,0.05592598]
[1767359032357,0.05595335,128.43,128.39,0.05592598]
[1767359032848,0.39649953,128.43,128.39,0.05592598]
[1767359040760,0.35132353,128.42,128.39,0.05592598]
[1767359052869,0.05595335,128.43,128.39,0.05592598]
[1767359053074,0.40727688,128.43,128.39,0.05592598]
[1767359054782,0.40727688,128.43,128.39,7.07312598]
[1767359063582,0.40727688,128.43,128.39,0.05592598]
[1767359082398,0.05595335,128.43,128.39,7.43209067]
[1767359082605,0.33814078,128.45,128.4,0.35906469]
[1767359083196,0.33814078,128.45,128.4,7.37546469]
[1767359083604,0.05392575,128.44,128.4,7.37546469]
[1767359086101,0.05392575,128.44,128.41,7.37516469]
[1767359092506,0.05392575,128.44,128.41,0.35906469]
[1767359096830,0.05392575,128.44,128.41,7.37516469]
[1767359112943,0.05392575,128.44,128.41,0.35906469]
[1767359115242,0.38823434,128.44,128.39,0.40649449]
[1767359116839,0.38823434,128.44,128.39,7.42369449]
[1767359118343,0.38823434,128.44,128.4,0.35056851]
[1767359119541,0.38823434,128.44,128.39,7.07312598]
[1767359119734,0.38823434,128.44,128.39,7.42369449]
[1767359126452,0.38823434,128.44,128.4,0.36582853]
[1767359126950,0.38823434,128.44,128.39,7.07312598]
[1767359127352,0.38823434,128.44,128.39,7.43895451]
[1767359129261,0.05392575,128.44,128.4,0.36582853]
[1767359137966,0.33842635,128.42,128.36,0.36582853]
[1767359138457,7.35452635,128.42,128.36,0.36582853]
[1767359138961,0.05559542,128.4,128.36,0.36582853]
[1767359139752,7.07229542,128.4,128.36,0.36582853]
[1767359139955,7.07229542,128.4,128.37,0.05813552]
[1767359141757,0.33842635,128.39,128.34,0.36582853]
[1767359142866,0.33842635,128.39,128.35,0.05931993]
[1767359144866,7.35572635,128.39,128.35,0.05931993]
[1767359147067,7.35572635,128.39,128.32,0.36582853]
[1767359147068,0.33842635,128.37,128.32,0.36582853]
[1767359148058,0.33842635,128.37,128.33,0.0533828]
[1767359148264,0.05936377,128.36,128.33,0.0533828]
[1767359151375,0.05936377,128.36,128.33,0.41921133]
[1767359160380,7.0166,128.41,128.34,0.33765839]
[1767359160680,7.0166,128.41,128.35,0.33765839]
[1767359160868,7.34053607,128.41,128.35,0.33765839]
[1767359161182,7.34053607,128.41,128.36,0.33765839]
[1767359161183,0.32393607,128.41,128.36,0.33765839]
[1767359161369,7.0156,128.42,128.37,0.38891788]
[1767359161370,0.04986164,128.4,128.37,0.38891788]
[1767359164980,1.83566217,128.43,128.38,0.33765839]
[1767359165186,7.0149,128.44,128.38,0.33765839]
[1767359165378,1.83566217,128.45,128.38,0.33765839]
[1767359165580,8.84966217,128.45,128.39,0.33765839]
[1767359166086,0.05448406,128.43,128.41,0.0552992]
[1767359176792,1.5117261,128.42,128.37,0.33765839]
[1767359177795,8.5273261,128.42,128.38,0.0520089]
[1767359179997,1.5117261,128.42,128.38,0.38966729]
[1767359180198,0.37842013,128.43,128.38,0.38966729]
[1767359181505,7.39342013,128.43,128.38,0.38966729]
[1767359182302,1.83566217,128.42,128.38,0.0520089]
[1767359188805,7.06948406,128.43,128.38,0.0520089]
[1767359189103,8.93264749,128.43,128.38,0.37468011]
[1767359189801,7.42092139,128.43,128.38,0.37468011]
[1767359190007,8.93264749,128.43,128.38,0.37468011]
[1767359191710,7.42092139,128.43,128.38,0.37468011]
[1767359191906,8.93264749,128.43,128.38,0.37468011]
[1767359194112,1.91764749,128.43,128.38,0.37468011]
[1767359196015,1.91764749,128.43,128.38,7.39238011]
[1767359201121,0.40592139,128.43,128.38,7.39238011]
[1767359204731,0.05448406,128.43,128.39,0.32267121]
[1767359204922,0.35143733,128.48,128.43,0.32267121]
[1767359206326,0.05335968,128.47,128.44,0.05614694]
[1767359206721,0.40479701,128.47,128.44,0.05614694]
[1767359207330,0.05335968,128.47,128.44,0.05614694]
[1767359210929,0.40479701,128.47,128.44,0.05614694]
[1767359213233,0.05335968,128.47,128.44,0.05614694]
[1767359215527,92.06,128.5,128.45,0.32267121]
[1767359215720,92.41143733,128.5,128.45,0.32267121]
[1767359216031,0.35143733,128.5,128.45,0.32267121]
[1767359216431,0.35143733,128.5,128.44,0.05614694]
[1767359216627,0.05282098,128.48,128.44,0.05614694]
[1767359216828,0.05282098,128.48,128.44,0.39906552]
[1767359220434,0.05282098,128.48,128.44,7.41346552]
[1767359222340,0.05282098,128.48,128.45,7.35661858]
[1767359222528,0.05282098,128.48,128.45,0.34291858]
[1767359223829,0.05282098,128.48,128.44,0.05614694]
[1767359225729,0.05282098,128.48,128.44,0.39906552]
[1767359232543,0.38297481,128.48,128.44,0.05614694]
[1767359232742,0.33015383,128.47,128.42,0.34291858]
[1767359233337,7.34305383,128.47,128.42,0.34291858]
[1767359233740,7.34305383,128.47,128.43,0.05977147]
[1767359235053,0.33015383,128.52,128.46,0.34291858]
[1767359236540,0.05579891,128.5,128.48,0.05169672]
[1767359258863,7.34403791,128.55,128.49,0.33565041]
[1767359259046,0.33503791,128.54,128.49,0.33565041]
[1767359259858,0.05435165,128.53,128.5,0.04925662]
[1767359262363,7.34333791,128.56,128.5,0.38490703]
[1767359263056,15.26049653,128.58,128.51,0.33565041]
[1767359263258,6.08874924,128.57,128.51,0.33565041]
[1767359263459,0.05484726,128.55,128.53,0.05420022]
[1767359266656,7.06344726,128.55,128.53,0.05420022]
[1767359270866,0.05484726,128.55,128.53,0.05420022]
[1767359272969,2.69343175,128.58,128.53,0.05420022]
[1767359272970,0.33503791,128.58,128.53,0.05420022]
[1767359273767,7.34193791,128.58,128.53,0.05420022]
[1767359274066,0.05974806,128.57,128.53,0.05420022]
[1767359275863,7.39233367,128.57,128.53,0.05420022]
[1767359276169,0.32518561,128.56,128.53,0.05420022]
[1767359277370,7.33318561,128.56,128.53,0.05420022]
[1767359281368,0.32518561,128.55,128.5,0.32350232]
[1767359281966,7.009,128.54,128.5,0.32350232]
[1767359282574,0.05793646,128.53,128.51,0.05052149]
[1767359286373,0.38312207,128.53,128.51,0.05052149]
[1767359287080,0.38312207,128.53,128.48,7.33580232]
[1767359287979,0.38312207,128.53,128.49,0.05668674]
[1767359289472,0.32518561,128.52,128.49,0.05668674]
[1767359289678,1.8337983,128.52,128.49,0.05668674]
[1767359290270,8.8438983,128.52,128.49,0.05668674]
[1767359291372,1.8337983,128.52,128.49,0.05668674]
[1767359291571,1.56654915,128.53,128.49,0.05668674]
[1767359292581,1.89173476,128.53,128.49,0.05668674]
[1767359293783,0.38312207,128.53,128.49,0.05668674]
[1767359301897,0.32518561,128.51,128.44,14.75490044]
[1767359302096,0.32518561,128.5,128.44,0.32350232]
[1767359302894,1.8337983,128.5,128.44,0.32350232]
[1767359303196,0.05825348,128.48,128.46,0.0509182]
[1767359304599,0.32518561,128.52,128.46,7.38762052]
[1767359304899,0.32518561,128.51,128.46,7.38762052]
[1767359305598,0.05513445,128.5,128.46,7.38762052]
[1767359310504,0.05513445,128.5,128.47,7.34303357]
[1767359321414,0.05513445,128.5,128.48,0.33023357]
[1767359328221,0.31439343,128.56,128.5,7.34143357]
[1767359329220,0.05863517,128.54,128.52,0.0566709]
[1767359341724,0.38321689,128.54,128.49,7.0117]
[1767359341926,0.32458172,128.53,128.46,0.33962676]
[1767359342827,0.05944685,128.51,128.48,0.05430218]
[1767359358354,0.32458172,128.49,128.42,0.33962676]
[1767359359155,0.32458172,128.48,128.42,0.33962676]
[1767359359357,0.05546914,128.46,128.44,0.05236168]
[1767359360960,7.39365086,128.46,128.4,0.33962676]
[1767359362056,7.33888172,128.45,128.42,0.05070489]
[1767359363458,7.33888172,128.45,128.38,15.72432905]
[1767359363658,0.32458172,128.44,128.38,15.72432905]
[1767359364563,0.04953938,128.42,128.4,0.05855485]
[1767359365156,0.32458172,128.44,128.4,0.05855485]
[1767359366160,0.05798346,128.43,128.4,0.05855485]
[1767359368163,0.05798346,128.43,128.4,0.40469807]
[1767359368364,7.35525026,128.46,128.4,0.40469807]
[1767359369355,0.0554017,128.44,128.4,0.40469807]
[1767359369571,0.0554017,128.44,128.4,7.42129807]
[1767359373969,0.0554017,128.44,128.41,0.34614322]
[1767359383278,0.0554017,128.44,128.4,0.05855485]
[1767359383777,0.39685196,128.44,128.4,0.05855485]
[1767359384076,0.34145026,128.43,128.37,7.36394322]
[1767359384774,7.35655026,128.43,128.37,7.36394322]
[1767359385079,0.05933258,128.41,128.39,0.05814478]
[1767359391482,0.34145026,128.45,128.39,0.404288]
[1767359392165,7.35635026,128.44,128.39,0.404288]
[1767359392469,7.35635026,128.44,128.39,0.34614322]
[1767359392670,0.05153256,128.43,128.4,0.05856469]
[1767359393876,7.06663256,128.43,128.4,0.05856469]
[1767359400885,0.05153256,128.43,128.4,0.05856469]
[1767359402080,7.40214258,128.43,128.4,0.05856469]
[1767359402587,0.38704258,128.43,128.4,0.05856469]
[1767359403778,7.40214258,128.43,128.4,0.05856469]
[1767359406492,8.91355299,128.43,128.4,0.05856469]
[1767359411596,0.33551002,128.42,128.37,7.0182]
[1767359412396,0.33551002,128.42,128.37,7.33455618]
[1767359412597,0.33551002,128.42,128.38,0.0493007]
[1767359415102,0.33551002,128.42,128.38,7.0670007]
[1767359423018,0.33551002,128.42,128.38,7.38335688]
[1767359423316,7.06663256,128.43,128.39,0.31635618]
[1767359425422,0.33551002,128.48,128.4,0.31635618]
[1767359425624,0.33551002,128.48,128.42,0.31635618]
[1767359426517,0.05590843,128.46,128.44,0.05322355]